lending/lending_fUSD_20250411
["ID","MTS","AMOUNT","RATE_DAILY","PERIOD"]
[357702463,1744354554709,-1008.98096803,0.00049315,120]
[357702464,1744354554796,-1008.98096803,0.00049315,120]
[357702465,1744354554838,-1008.98096803,0.00049315,120]
[357702466,1744354554879,-1008.98096803,0.00049315,120]
[357702467,1744354554937,-1008.98096803,0.00049315,120]
[357702468,1744354554982,-1008.98096803,0.00049315,120]
[357702469,1744354555031,-1008.98096803,0.00049315,120]
[357702470,1744354555076,-1008.98096803,0.00049315,120]
[357702471,1744354555121,-1008.98096803,0.00049315,120]
[357702472,1744354555164,-1008.98096803,0.00049315,120]
[357702473,1744354555209,-1008.98096803,0.00049315,120]
[357702474,1744354555253,-1008.98096803,0.00049315,120]
[357702475,1744354555296,-1008.98096803,0.00049315,120]
[357702476,1744354555341,-1008.98096803,0.00049315,120]
[357702477,1744354555383,-1008.98096803,0.00049315,120]
[357702478,1744354555427,-1008.98096803,0.00049315,120]
[357702479,1744354555470,-1008.98096803,0.00049315,120]
[357702480,1744354555512,-1008.98096803,0.00049315,120]
[357702481,1744354555556,-1008.98096803,0.00049315,120]
[357702482,1744354555600,-1008.98096803,0.00049315,120]
[357702483,1744354555645,-1008.98096803,0.00049315,120]
[357702484,1744354555689,-1008.98096803,0.00049315,120]
[357702485,1744354555732,-1008.98096803,0.00049315,120]
[357702486,1744354555776,-1008.98096803,0.00049315,120]
[357702487,1744354555819,-1008.98096803,0.00049315,120]
[357702488,1744354555862,-1008.98096803,0.00049315,120]
[357702489,1744354555908,-1008.98096803,0.00049315,120]
[357702490,1744354555953,-1008.98096803,0.00049315,120]
[357702491,1744354555996,-1008.98096803,0.00049315,120]
[357702492,1744354556040,-1008.98096803,0.00049315,120]
[357702493,1744354556083,-1008.98096803,0.00049315,120]
[357702494,1744354556124,-1008.98096803,0.00049315,120]
[357702495,1744354556165,-1008.98096803,0.00049315,120]
[357702496,1744354556206,-1008.98096803,0.00049315,120]
[357702497,1744354556245,-1008.98096803,0.00049315,120]
[357702498,1744354556284,-4047.81973948,0.00049315,120]
[357702499,1744354556324,-4047.81973948,0.00049315,120]
[357702500,1744354556363,-4047.81973948,0.00049315,120]
[357702501,1744354556404,-4047.81973948,0.00049315,120]
[357702502,1744354556442,-4047.81973948,0.00049315,120]
[357702503,1744354556484,-4047.81973948,0.00049315,120]
[357702504,1744354556525,-4047.81973948,0.00049315,120]
[357702505,1744354556567,-4047.81973948,0.00049315,120]
[357702506,1744354556608,-4497.57748831,0.00049315,120]
[357702507,1744354556649,-4047.81973948,0.00049315,120]
[357702508,1744354556690,-4047.81973948,0.00049315,120]
[357702509,1744354556731,-4047.81973948,0.00049315,120]
[357702510,1744354556771,-4047.81973948,0.00049315,120]
[357702511,1744354556810,-4047.81973948,0.00049315,120]
[357702512,1744354556850,-4047.81973948,0.00049315,120]
[357702513,1744354556890,-4047.81973948,0.00049315,120]
[357702514,1744354556932,-4497.57748831,0.00049315,120]
[357702515,1744354556972,-4047.81973948,0.00049315,120]
[357702516,1744354557013,-4047.81973948,0.00049315,120]
[357702517,1744354557054,-4497.57748831,0.00049315,120]
[357702518,1744354557094,-4047.81973948,0.00049315,120]
[357702519,1744354557135,-4047.81973948,0.00049315,120]
[357702520,1744354557176,-4047.81973948,0.00049315,120]
[357702521,1744354557217,-4047.81973948,0.00049315,120]
[357702522,1744354557256,-4047.81973948,0.00049315,120]
[357702523,1744354557296,-4047.81973948,0.00049315,120]
[357702524,1744354557336,-4047.81973948,0.00049315,120]
[357702525,1744354557377,-4047.81973948,0.00049315,120]
[357702526,1744354557417,-4047.81973948,0.00049315,120]
[357702527,1744354557458,-4047.81973948,0.00049315,120]
[357702528,1744354557498,-4047.81973948,0.00049315,120]
[357702529,1744354557540,-4047.81973948,0.00049315,120]
[357702530,1744354557584,-4497.57748831,0.00049315,120]
[357702531,1744354557627,-4007.34154208,0.00049315,120]
[357702532,1744354557671,-4007.34154208,0.00049315,120]
[357702533,1744354557714,-4007.34154208,0.00049315,120]
[357702534,1744354557757,-4007.34154208,0.00049315,120]
[357702535,1744354557799,-4007.34154208,0.00049315,120]
[357702536,1744354557843,-4452.60171342,0.00049315,120]
[357702537,1744354557883,-4007.34154208,0.00049315,120]
[357702538,1744354557926,-4007.34154208,0.00049315,120]
[357702539,1744354557969,-4007.34154208,0.00049315,120]
[357702540,1744354558011,-4007.34154208,0.00049315,120]
[357702541,1744354558053,-4007.34154208,0.00049315,120]
[357702542,1744354558096,-163.28938572,0.0004932,120]
[357702543,1744354558137,-163.28938572,0.0004932,120]
[357702544,1744354558178,-163.28938572,0.0004932,120]
[357702545,1744354558219,-163.28938572,0.0004932,120]
[357702546,1744354558259,-163.28,0.0004932,120]
[357702547,1744354558300,-158.75356945,0.0004932,120]
[357702548,1744354558340,-158.75356945,0.0004932,120]
[357702549,1744354558380,-158.75356945,0.0004932,120]
[357702550,1744354558420,-158.75356945,0.0004932,120]
[357702551,1744354558461,-158.75356945,0.0004932,120]
[357702552,1744354558502,-158.75356945,0.0004932,120]
[357702553,1744354558543,-158.75356945,0.0004932,120]
[357702554,1744354558588,-158.75356945,0.0004932,120]
[357702555,1744354558630,-158.75356945,0.0004932,120]
[357702556,1744354558866,-158.75356945,0.0004932,120]
[357702557,1744354558907,-158.75356945,0.0004932,120]
[357702558,1744354558948,-158.75,0.0004932,120]
[357702559,1744354558988,-225.75061786,0.0004932,120]
[357702560,1744354559029,-225.75061786,0.0004932,120]
[357702561,1744354559071,-225.75061786,0.0004932,120]
[357702562,1744354559113,-225.75061786,0.0004932,120]
[357702563,1744354559155,-225.75061786,0.0004932,120]
[357702564,1744354559197,-225.75061786,0.0004932,120]
[357702565,1744354559238,-225.75061786,0.0004932,120]
[357702566,1744354559279,-225.75061786,0.0004932,120]
[357702567,1744354559320,-225.75061786,0.0004932,120]
[357702568,1744354559360,-225.75061786,0.0004932,120]
[357702569,1744354559400,-225.75061786,0.0004932,120]
[357702570,1744354559440,-225.75061786,0.0004932,120]
[357702571,1744354559480,-225.75061786,0.0004932,120]
[357702572,1744354559526,-225.75061786,0.0004932,120]
[357702573,1744354559592,-225.75061786,0.0004932,120]
[357702574,1744354559657,-225.75061786,0.0004932,120]
[357702575,1744354559722,-225.75061786,0.0004932,120]
[357702576,1744354559788,-225.75061786,0.0004932,120]
[357702577,1744354559847,-225.75061786,0.0004932,120]
[357702578,1744354559887,-225.75,0.0004932,120]
[357702579,1744354559928,-526.75144167,0.0004932,120]
[357702580,1744354559970,-526.75144167,0.0004932,120]
[357702581,1744354560011,-526.75144167,0.0004932,120]
[357702582,1744354560054,-526.75144167,0.0004932,120]
[357702583,1744354560096,-526.75144167,0.0004932,120]
[357702584,1744354560137,-526.75144167,0.0004932,120]
[357702585,1744354560181,-526.75144167,0.0004932,120]
[357702586,1744354560225,-526.75144167,0.0004932,120]
[357702587,1744354560269,-526.75144167,0.0004932,120]
[357702588,1744354560313,-526.75144167,0.0004932,120]
[357702589,1744354560356,-526.75144167,0.0004932,120]
[357702590,1744354560398,-526.75144167,0.0004932,120]
[357702591,1744354560439,-526.75144167,0.0004932,120]
[357702592,1744354560482,-526.75144167,0.0004932,120]
[357702593,1744354560525,-526.75144167,0.0004932,120]
[357702594,1744354560568,-526.75144167,0.0004932,120]
[357702595,1744354560610,-526.75144167,0.0004932,120]
[357702596,1744354560652,-526.75144167,0.0004932,120]
[357702597,1744354560694,-526.75144167,0.0004932,120]
[357702598,1744354560746,-526.75,0.0004932,120]
[357702599,1744354560791,-241.50689002,0.0004932,120]
[357702600,1744354560834,-241.50689002,0.0004932,120]
[357702601,1744354560876,-241.50689002,0.0004932,120]
[357702602,1744354560918,-241.50689002,0.0004932,120]
[357702603,1744354560963,-241.50689002,0.0004932,120]
[357702604,1744354561006,-241.50689002,0.0004932,120]
[357702605,1744354561048,-241.50689002,0.0004932,120]
[357702606,1744354561090,-241.50689002,0.0004932,120]
[357702607,1744354561132,-241.50689002,0.0004932,120]
[357702608,1744354561175,-241.50689002,0.0004932,120]
[357702609,1744354561216,-241.50689002,0.0004932,120]
[357702610,1744354561259,-241.50689002,0.0004932,120]
[357702611,1744354561302,-241.50689002,0.0004932,120]
[357702612,1744354561345,-241.50689002,0.0004932,120]
[357702613,1744354561388,-241.50689002,0.0004932,120]
[357702614,1744354561432,-241.50689002,0.0004932,120]
[357702615,1744354561482,-241.50689002,0.0004932,120]
[357702616,1744354561549,-241.50689002,0.0004932,120]
[357702617,1744354561617,-241.50689002,0.0004932,120]
[357702618,1744354561683,-241.5,0.0004932,120]
[357702619,1744354561752,-563.5160767,0.0004932,120]
[357702620,1744354561807,-563.5160767,0.0004932,120]
[357702621,1744354561850,-563.5160767,0.0004932,120]
[357702622,1744354561894,-563.5160767,0.0004932,120]
[357702623,1744354561937,-563.5160767,0.0004932,120]
[357702624,1744354561980,-563.5160767,0.0004932,120]
[357702625,1744354562022,-563.5160767,0.0004932,120]
[357702626,1744354562065,-563.5160767,0.0004932,120]
[357702627,1744354562107,-563.5160767,0.0004932,120]
[357702628,1744354562148,-563.5160767,0.0004932,120]
[357702629,1744354562190,-563.5160767,0.0004932,120]
[357702630,1744354562230,-563.5160767,0.0004932,120]
[357702631,1744354562272,-563.5160767,0.0004932,120]
[357702632,1744354562312,-563.5160767,0.0004932,120]
[357702633,1744354562358,-563.5160767,0.0004932,120]
[357702634,1744354562397,-563.5160767,0.0004932,120]
[357702635,1744354562438,-563.5160767,0.0004932,120]
[357702636,1744354562478,-563.5160767,0.0004932,120]
[357702637,1744354562518,-563.5160767,0.0004932,120]
[357702638,1744354562561,-563.51,0.0004932,120]
[357702639,1744354562601,-152.0,0.00049329,36]
[357702640,1744354562642,-735.40588135,0.00049342,120]
[357702641,1744354562681,-13763.20871152,0.00049346,120]
[357702642,1744354562726,-1700.0,0.00049439,30]
[357702643,1744354562767,-2000.0,0.00049449,120]
[357702644,1744354562807,-1000.0,0.00049472,30]
[357702645,1744354562848,-1483.33872,0.00049488,30]
[357702646,1744354562887,-1258.89690489,0.000495,120]
[357702647,1744354562927,-1000.0,0.00049515,30]
[357702648,1744354562968,-1700.0,0.00049564,30]
[357702649,1744354563010,-500.0,0.00049591,30]
[357702650,1744354563053,-2000.0,0.00049636,120]
[357702651,1744354563098,-500.0,0.00049637,30]
[357702652,1744354563140,-1483.33872,0.00049688,30]
[357702653,1744354563184,-8904.34758681,0.0004969,120]
[357702654,1744354563228,-150.0,0.00049748,120]
[357702655,1744354563455,-161.03845318,0.0004977,120]
[357702656,1744354563499,-500.0,0.00049789,30]
[357702657,1744354563548,-500.0,0.00049797,30]
[357702658,1744354563617,-1000.0,0.000498,120]
[357702659,1744354563690,-1000.0,0.000498,120]
[357702660,1744354563765,-878.26100257,0.000498,30]
[357702661,1744354563849,-1700.0,0.00049802,30]
[357702662,1744354563901,-152.0,0.00049806,37]
[357702663,1744354563944,-2000.0,0.00049822,120]
[357702664,1744354563989,-1000.0,0.00049833,30]
[357702665,1744354564032,-160.0,0.00049839,120]
[357702666,1744354564076,-500.0,0.00049851,30]
[357702667,1744354564118,-1483.33872,0.00049888,30]
[357702668,1744354564159,-100000.0,0.000499,120]
[357702669,1744354564200,-100000.0,0.000499,120]
[357702670,1744354564242,-1000.0,0.00049904,30]
[357702671,1744354564283,-1000.0,0.00049966,30]
[357702672,1744354564326,-507.3,0.00049973,30]
[357702673,1744354564368,-800.0,0.0004999,120]
[357702674,1744354564409,-2000.0,0.0004999,120]
[357702675,1744354564449,-800.0,0.00049999,120]
[357702676,1744354564493,-50000.0,0.0005,50]
[357702677,1744354564535,-500.0,0.0005,120]
[357702678,1744354564575,-464.7598569,0.0005,120]
[357702679,1744354564616,-725.34273954,0.0005,30]
[357702680,1744354564660,-400.0,0.0005,120]
[357702681,1744354564701,-237.94208161,0.0005,120]
[357702682,1744354564744,-167.0,0.0005,120]
[357702683,1744354564786,-280.88600054,0.0005,30]
[357702684,1744354564828,-373.57997829,0.0005,120]
[357702685,1744354564871,-177.28517847,0.0005,120]
[357702686,1744354564912,-834.0,0.0005,120]
[357702687,1744354564954,-771.42258904,0.0005,120]
[357702688,1744354564995,-3006.99496708,0.0005,30]
[357702689,1744354565036,-150.0,0.0005,120]
[357702690,1744354565077,-10500.0,0.0005,120]
[357702691,1744354565118,-1100.0,0.0005,120]
[357702692,1744354565161,-1000000.0,0.0005,120]
[357702693,1744354565204,-1000000.0,0.0005,120]
[357702694,1744354565249,-312279.30720543,0.0005,120]
[357702695,1744354572323,-687720.69279457,0.0005,120]
[357702696,1744354572364,-1000000.0,0.0005,120]
[357702697,1744354572405,-1000000.0,0.0005,120]
[357702698,1744354572443,-2240.0,0.0005,120]
[357702699,1744354572482,-10122.07350467,0.0005,120]
[357702700,1744354572519,-342.98960456,0.0005,30]
[357702701,1744354572561,-1468.58188218,0.0005,120]
[357702702,1744354572598,-623.92751992,0.0005,120]
[357702703,1744354572637,-1962.0454968,0.0005,120]
[357702704,1744354572675,-213.37668865,0.0005,120]
[357702705,1744354572713,-718.65867237,0.0005,120]
[357702706,1744354572751,-500.0,0.0005,30]
[357702707,1744354572789,-802.56909196,0.0005,120]
[357702708,1744354572828,-453.71395404,0.0005,120]
[357702709,1744354572867,-151097.54,0.0005,60]
[357702710,1744354572911,-3246.35854425,0.0005,120]
[357702711,1744354572951,-3954.19486461,0.0005,120]
[357702712,1744354572991,-134533.27738142,0.0005,30]
[357702713,1744354577070,-25232.68750848,0.0005,30]
[357702714,1744354577113,-1663.19,0.0005,30]
[357702715,1744354577152,-25000.0,0.0005,120]
[357702716,1744354577193,-27040.0,0.0005,120]
[357702717,1744354577237,-2257.0,0.0005,120]
[357702718,1744354577280,-9548.82668057,0.0005,30]
[357702719,1744354577323,-22533.0585065,0.0005,120]
[357702720,1744354577366,-3000.0,0.0005,120]
[357702721,1744354577410,-800.0,0.0005,120]
[357702722,1744354577452,-800.0,0.0005,120]
[357702723,1744354577495,-500.0,0.0005,120]
[357702724,1744354577538,-500.0,0.0005,120]
[357702725,1744354577581,-500.0,0.0005,120]
[357702726,1744354577623,-500.0,0.0005,120]
[357702727,1744354577667,-321.46,0.0005,120]
[357702728,1744354577709,-197.0,0.0005,120]
[357702729,1744354577753,-531.6550367,0.0005,120]
[357702730,1744354577798,-238.55687453,0.0005,120]
[357702731,1744354577841,-11081.09663453,0.0005,120]
[357702732,1744354577886,-4116.8809174,0.0005,120]
[357702733,1744354577933,-162.13446748,0.0005,120]
[357702734,1744354577976,-466.0,0.0005,120]
[357702735,1744354578028,-539.86,0.0005,120]
[357702736,1744354578098,-7814.88606949,0.0005,120]
[357702737,1744354578167,-217.0,0.0005,120]
[357702738,1744354578224,-500.0,0.0005,120]
[357702739,1744354578268,-500.0,0.0005,120]
[357702740,1744354578311,-500.0,0.0005,120]
[357702741,1744354578355,-500.0,0.0005,120]
[357702742,1744354578401,-500.0,0.0005,120]
[357702743,1744354578445,-500.0,0.0005,120]
[357702744,1744354578490,-500.0,0.0005,120]
[357702745,1744354578535,-500.0,0.0005,120]
[357702746,1744354578580,-500.0,0.0005,120]
[357702747,1744354578624,-417.83141549,0.0005,120]
[357702748,1744354578669,-350.0,0.0005,120]
[357702749,1744354578716,-2000.0,0.00050008,120]
[357702750,1744354578760,-500.0,0.00050017,60]
[357702751,1744354578805,-2000.0,0.00050194,120]
[357702752,1744354578852,-500.0,0.00050267,60]
[357702753,1744354578927,-152.0,0.00050282,38]
[357702754,1744354579002,-1495.37,0.00050315,120]
[357702755,1744354579066,-2000.0,0.0005038,120]
[357702756,1744354579111,-1000.0,0.00050425,60]
[357702757,1744354579155,-242.6608577,0.00050457,60]
[357702758,1744354579199,-500.0,0.0005048,60]
[357702759,1744354579242,-2000.0,0.00050566,120]
[357702760,1744354579286,-500.0,0.00050683,60]
[357702761,1744354579330,-250.05,0.00050684,120]
[357702762,1744354579373,-1700.0,0.00050697,60]
[357702763,1744354579416,-2000.0,0.00050752,120]
[357702764,1744354579460,-500.0,0.00050769,60]
[357702765,1744354579504,-1000.0,0.0005077,60]
[357702766,1744354579549,-150.0,0.00050791,120]
[357702767,1744354579599,-500.0,0.00050798,60]
[357702768,1744354579644,-150.0,0.00050829,120]
[357702769,1744354579689,-507.3,0.00050849,30]
[357702770,1744354579733,-500.0,0.00050854,60]
[357702771,1744354579775,-1000.0,0.0005091,60]
[357702772,1744354579821,-1000.0,0.00050915,60]
[357702773,1744354579863,-2000.0,0.00050938,120]
[357702774,1744354579908,-500.0,0.00050974,60]
[357702775,1744354579954,-50000.0,0.00051,51]
[357702776,1744354580000,-800.0,0.00051,120]
[357702777,1744354580044,-3153.23760016,0.00051,120]
[357702778,1744354580089,-1000000.0,0.00051,120]
[357702779,1744354580134,-1000000.0,0.00051,120]
[357702780,1744354580181,-770570.25743097,0.00051,120]
[357702781,1744354583688,-500.0,0.0005,120]
[357702782,1744354583730,-203.14,0.0005087,30]
[357702783,1744354583774,-229429.74256903,0.00051,120]
[357702784,1744354583817,-1000000.0,0.00051,120]
[357702785,1744354583861,-1000000.0,0.00051,120]
[357702786,1744354583902,-200000.0,0.00051,120]
[357702787,1744354583941,-200000.0,0.00051,120]
[357702788,1744354583984,-500.0,0.00051,60]
[357702789,1744354584027,-864.20477592,0.00051,120]
[357702790,1744354584070,-1000.0,0.00051001,60]
[357702791,1744354584112,-500.0,0.00051025,60]
[357702792,1744354584156,-150.0,0.00051065,120]
[357702793,1744354584202,-150.0,0.00051114,120]
[357702794,1744354584246,-2000.0,0.00051124,120]
[357702795,1744354584288,-1000.0,0.00051131,60]
[357702796,1744354584331,-1000.0,0.000512,120]
[357702797,1744354584372,-1000.0,0.000512,120]
[357702798,1744354584414,-1000.0,0.000512,120]
[357702799,1744354584455,-784.05016203,0.00051233,60]
[357702800,1744354584498,-1000.0,0.00051234,60]
[357702801,1744354584539,-500.0,0.00051287,60]
[357702802,1744354584581,-2000.0,0.0005131,120]
[357702803,1744354584621,-1583.04580622,0.000514,120]
[357702804,1744354584665,-500.0,0.00051445,60]
[357702805,1744354584707,-2000.0,0.00051497,120]
[357702806,1744354584753,-352335.8166868,0.000515,120]
[357702807,1744354589567,-647664.1833132,0.000515,120]
[357702808,1744354589609,-1200.0,0.000516,120]
[357702809,1744354589651,-150.0,0.00051615,120]
[357702810,1744354589695,-1000.0,0.00051623,60]
[357702811,1744354589736,-2000.0,0.00051683,120]
[357702812,1744354589777,-996.24592193,0.00051692,60]
[357702813,1744354589820,-190.02,0.00051692,30]
[357702814,1744354589862,-507.3,0.00051726,30]
[357702815,1744354589903,-1000.0,0.00051732,30]
[357702816,1744354589944,-2000.0,0.00051869,120]
[357702817,1744354589985,-150.0,0.00051911,120]
[357702818,1744354590028,-150.0,0.00051914,120]
[357702819,1744354590068,-500.0,0.00051944,60]
[357702820,1744354590108,-500.0,0.00051967,60]
[357702821,1744354590149,-1700.0,0.00051976,60]
[357702822,1744354590190,-1447.07050257,0.00051986,120]
[357702823,1744354590230,-1714.33930586,0.00051998,120]
[357702824,1744354590275,-50000.0,0.00052,52]
[357702825,1744354590315,-922.67688342,0.00052,30]
[357702826,1744354590357,-500.0,0.00052,120]
[357702827,1744354590399,-400.0,0.00052,120]
[357702828,1744354590441,-1200.0,0.00052,120]
[357702829,1744354590482,-1100.0,0.00052,120]
[357702830,1744354590525,-1000000.0,0.00052,120]
[357702831,1744354590571,-1000000.0,0.00052,120]
[357702832,1744354590617,-283008.16407302,0.00052,120]
[357702833,1744354595131,-194.01316467,0.00049315,120]
[357702834,1744354595175,-500.0,0.00049999,120]
[357702835,1744354595218,-377.35563374,0.00049999,31]
[357702836,1744354595260,-500.0,0.00049999,120]
[357702837,1744354595304,-500.0,0.00049999,120]
[357702838,1744354595346,-500.0,0.00049999,120]
[357702839,1744354595390,-500.0,0.00049999,120]
[357702840,1744354595432,-458.25154343,0.00049999,120]
[357702841,1744354595474,-500.0,0.00049999,120]
[357702842,1744354595516,-500.0,0.00049999,120]
[357702843,1744354595558,-500.0,0.00049999,120]
[357702844,1744354595608,-500.0,0.00049999,120]
[357702845,1744354595652,-500.0,0.00049999,120]
[357702846,1744354595696,-500.0,0.00049999,120]
[357702847,1744354595739,-500.0,0.00049999,120]
[357702848,1744354595783,-500.0,0.00049999,120]
[357702849,1744354595826,-500.0,0.00049999,120]
[357702850,1744354595869,-500.0,0.00049999,120]
[357702851,1744354595918,-500.0,0.00049999,120]
[357702852,1744354595964,-500.0,0.00049999,120]
[357702853,1744354596009,-500.0,0.00049999,120]
[357702854,1744354596052,-500.0,0.00049999,120]
[357702855,1744354596096,-500.0,0.00049999,120]
[357702856,1744354596139,-500.0,0.00049999,120]
[357702857,1744354596182,-500.0,0.00049999,120]
[357702858,1744354596230,-200000.0,0.00051,120]
[357702859,1744354596275,-716991.83592698,0.00052,120]
[357702860,1744354596317,-200000.0,0.00052,120]
[357702861,1744354596359,-3028.0,0.00052,120]
[357702862,1744354596400,-3000.0,0.00052,120]
[357702863,1744354596444,-90161.1974606,0.00052,30]
[357702864,1744354596488,-442.71427836,0.00052,120]
[357702865,1744354596532,-151097.54,0.00052,60]
[357702866,1744354596575,-2209.44,0.00052,120]
[357702867,1744354596615,-800.0,0.00052,120]
[357702868,1744354596655,-669.46754561,0.00052,30]
[357702869,1744354596700,-2813.7,0.00052,51]
[357702870,1744354596748,-2813.7,0.00052,51]
[357702871,1744354596796,-2813.7,0.00052,51]
[357702872,1744354596842,-2813.7,0.00052,51]
[357702873,1744354596892,-2813.7,0.00052,51]
[357702874,1744354596938,-2813.7,0.00052,51]
[357702875,1744354596984,-2813.7,0.00052,51]
[357702876,1744354597030,-2813.7,0.00052,51]
[357702877,1744354597078,-2813.7,0.00052,51]
[357702878,1744354597123,-2813.7,0.00052,51]
[357702879,1744354597171,-2813.7,0.00052,51]
[357702880,1744354597217,-2813.7,0.00052,51]
[357702881,1744354597262,-2813.7,0.00052,51]
[357702882,1744354597308,-2813.7,0.00052,51]
[357702883,1744354597355,-2813.7,0.00052,51]
[357702884,1744354597403,-2813.7,0.00052,51]
[357702885,1744354597448,-2813.7,0.00052,51]
[357702886,1744354597496,-2813.7,0.00052,51]
[357702887,1744354597544,-2813.7,0.00052,51]
[357702888,1744354597591,-2813.7,0.00052,51]
[357702889,1744354597639,-2813.7,0.00052,51]
[357702890,1744354597689,-2813.7,0.00052,51]
[357702891,1744354597737,-2813.7,0.00052,51]
[357702892,1744354597784,-2813.7,0.00052,51]
[357702893,1744354597826,-250.05,0.00052054,120]
[357702894,1744354597868,-2044.29719669,0.00052055,120]
[357702895,1744354597915,-518.0,0.00052055,120]
[357702896,1744354597958,-1000.0,0.00052118,60]
[357702897,1744354597999,-500.0,0.00052201,60]
[357702898,1744354598042,-1700.0,0.00052209,60]
[357702899,1744354598087,-150.0,0.00052213,120]
[357702900,1744354598129,-150.0,0.00052286,120]
[357702901,1744354598171,-1700.0,0.00052311,60]
[357702902,1744354598214,-153.0,0.00052329,120]
[357702903,1744354598256,-153.0,0.00052329,120]
[357702904,1744354598490,-153.0,0.00052329,120]
[357702905,1744354598533,-153.0,0.00052329,120]
[357702906,1744354598575,-153.0,0.00052329,120]
[357702907,1744354598616,-153.0,0.00052329,120]
[357702908,1744354598658,-153.0,0.00052329,120]
[357702909,1744354598696,-153.0,0.00052329,120]
[357702910,1744354598736,-153.0,0.00052329,120]
[357702911,1744354598775,-153.0,0.00052329,120]
[357702912,1744354598815,-153.0,0.00052329,120]
[357702913,1744354598855,-153.0,0.00052329,120]
[357702914,1744354598895,-153.0,0.00052329,120]
[357702915,1744354598950,-153.0,0.00052329,120]
[357702916,1744354598993,-153.0,0.00052329,120]
[357702917,1744354599035,-153.0,0.00052329,120]
[357702918,1744354599078,-153.0,0.00052329,120]
[357702919,1744354599119,-153.0,0.00052329,120]
[357702920,1744354599164,-153.0,0.00052329,120]
[357702921,1744354599206,-153.0,0.00052329,120]
[357702922,1744354599248,-153.0,0.00052329,120]
[357702923,1744354599289,-153.0,0.00052329,120]
[357702924,1744354599329,-153.0,0.00052329,120]
[357702925,1744354599371,-153.0,0.00052329,120]
[357702926,1744354599414,-153.0,0.00052329,120]
[357702927,1744354599459,-153.0,0.00052329,120]
[357702928,1744354599502,-153.0,0.00052329,120]
[357702929,1744354599544,-153.0,0.00052329,120]
[357702930,1744354599586,-153.0,0.00052329,120]
[357702931,1744354599629,-153.0,0.00052329,120]
[357702932,1744354599673,-153.0,0.00052329,120]
[357702933,1744354599717,-153.0,0.00052329,120]
[357702934,1744354599761,-153.0,0.00052329,120]
[357702935,1744354599804,-153.0,0.00052329,120]
[357702936,1744354599848,-153.0,0.00052329,120]
[357702937,1744354599890,-153.0,0.00052329,120]
[357702938,1744354599931,-153.0,0.00052329,120]
[357702939,1744354599976,-153.0,0.00052329,120]
[357702940,1744354600020,-153.0,0.00052329,120]
[357702941,1744354600065,-153.0,0.00052329,120]
[357702942,1744354600109,-153.0,0.00052329,120]
[357702943,1744354600153,-153.0,0.00052329,120]
[357702944,1744354600197,-153.0,0.00052329,120]
[357702945,1744354600241,-153.0,0.00052329,120]
[357702946,1744354600284,-153.0,0.00052329,120]
[357702947,1744354600328,-153.0,0.00052329,120]
[357702948,1744354600372,-153.0,0.00052329,120]
[357702949,1744354600414,-153.0,0.00052329,120]
[357702950,1744354600456,-153.0,0.00052329,120]
[357702951,1744354600498,-153.0,0.00052329,120]
[357702952,1744354600539,-153.0,0.00052329,120]
[357702953,1744354600583,-153.0,0.00052329,120]
[357702954,1744354600627,-153.0,0.00052329,120]
[357702955,1744354600670,-153.0,0.00052329,120]
[357702956,1744354600714,-153.0,0.00052329,120]
[357702957,1744354600758,-153.0,0.00052329,120]
[357702958,1744354600801,-153.0,0.00052329,120]
[357702959,1744354600843,-153.0,0.00052329,120]
[357702960,1744354600884,-153.0,0.00052329,120]
[357702961,1744354600925,-153.0,0.00052329,120]
[357702962,1744354600965,-153.0,0.00052329,120]